bitfinex/quotes_SOLUSD_20240920
["timestamp","ask_amount","ask_price","bid_price","bid_amount"]
[1726862050950,0.250555,146.97,146.86,1.61272245]
[1726862050951,7.07928762,146.95,146.87,16.5036]
[1726862051256,7.07928762,146.95,146.89,0.25098]
[1726862052158,7.07928762,146.95,146.88,0.25098]
[1726862053055,20.0,146.94,146.88,0.25098]
[1726862054857,20.0,146.94,146.88,1.61261485]
[1726862055234,0.250555,146.97,146.88,1.61261485]
[1726862055451,20.250555,146.97,146.9,6.4179]
[1726862055646,20.250555,146.97,146.91,0.25098]
[1726862056963,20.250555,146.97,146.92,1.36126409]
[1726862057163,20.250555,146.97,146.93,15.57878]
[1726862058252,0.250555,146.97,146.93,15.57878]
[1726862059965,20.250555,146.97,146.93,15.45329]
[1726862060867,23.776884,146.96,146.93,0.12549]
[1726862061070,20.0,146.95,146.9,6.4179]
[1726862061362,20.0,146.95,146.89,15.3278]
[1726862063552,20.0,146.93,146.89,15.3278]
[1726862063758,20.0,146.95,146.89,15.3278]
[1726862065287,23.776884,146.94,146.89,15.3278]
[1726862065566,20.0,146.93,146.86,6.3789]
[1726862065747,27.08040909,146.93,146.86,6.3789]
[1726862066662,20.0,146.91,146.86,6.3789]
[1726862068271,20.0,146.91,146.85,15.45329]
[1726862068272,20.0,146.89,146.85,15.3278]
[1726862073081,20.0,146.92,146.86,0.25098]
[1726862073456,7.08040909,146.93,146.86,0.25098]
[1726862073652,7.08040909,146.93,146.88,0.25098]
[1726862073862,2.18535808,146.97,146.88,0.25098]
[1726862074075,29.69499632,146.97,146.88,0.25098]
[1726862074679,27.76019324,146.97,146.88,0.25098]
[1726862074980,20.0,146.96,146.88,0.25098]
[1726862080486,20.0,146.92,146.87,6.478]
[1726862081082,40.89,146.96,146.87,6.478]
[1726862081083,20.0,146.95,146.87,6.478]
[1726862081281,23.776884,146.94,146.87,6.478]
[1726862081490,20.0,146.93,146.87,6.478]
[1726862081783,20.0,146.93,146.88,0.25098]
[1726862082366,43.776884,146.95,146.88,0.25098]
[1726862083690,20.0,146.93,146.88,0.25098]
[1726862083862,43.776884,146.95,146.88,0.25098]
[1726862084286,50.85601958,146.95,146.88,0.25098]
[1726862085087,78.09101958,146.95,146.88,0.25098]
[1726862085385,71.28601958,146.95,146.88,0.25098]
[1726862088985,27.07913558,146.95,146.88,1.6126113]
[1726862089190,27.07913558,146.95,146.89,15.9513]
[1726862089384,27.07913558,146.95,146.9,0.25098]
[1726862090394,27.07913558,146.95,146.9,1.61247212]
[1726862090569,27.07913558,146.95,146.9,0.25098]
[1726862090767,0.250555,146.97,146.9,0.25098]
[1726862091477,0.250555,146.97,146.92,0.25098]
[1726862092779,20.250555,146.97,146.92,0.25098]
[1726862098092,20.250555,146.97,146.94,0.25098]
[1726862098420,0.250555,146.97,146.94,0.25098]
[1726862100006,0.250555,146.97,146.94,0.12549]
[1726862100212,0.250555,146.97,146.93,16.5992]
[1726862100520,0.250555,146.97,146.92,0.25098]
[1726862101494,0.250555,146.97,146.91,6.5877]
[1726862102713,20.250555,146.97,146.91,6.5877]
[1726862102914,23.776884,146.96,146.91,6.5877]
[1726862103102,20.0,146.95,146.81,0.250555]
[1726862103300,23.776884,146.92,146.82,15.1625]
[1726862103521,23.776884,146.92,146.83,1.36194257]
[1726862103522,20.0,146.91,146.83,1.36194257]
[1726862103813,0.250555,146.97,146.83,1.36194257]
[1726862103814,7.054655,146.97,146.83,1.36194257]
[1726862104017,44.027439,146.97,146.84,15.1625]
[1726862104316,84.917439,146.97,146.84,15.1625]
[1726862104491,43.776884,146.94,146.84,15.1625]
[1726862104696,64.206884,146.94,146.84,15.1625]
[1726862105199,71.012584,146.94,146.84,15.1625]
[1726862105596,43.776884,146.94,146.84,15.1625]
[1726862105900,43.776884,146.94,146.85,0.25098]
[1726862106105,43.776884,146.94,146.85,6.58208]
[1726862108110,20.0,146.92,146.85,6.58208]
[1726862108312,71.012384,146.94,146.85,6.58208]
[1726862108613,7.0831382,146.91,146.84,15.1625]
[1726862108814,20.0,146.9,146.84,15.1625]
[1726862109021,23.776884,146.89,146.81,22.051455]
[1726862109219,20.0,146.88,146.81,22.051455]
[1726862110022,23.776884,146.87,146.81,22.051455]
[1726862110223,20.0,146.86,146.81,15.720355]
[1726862110621,20.0,146.86,146.81,0.250555]
[1726862112028,27.51407466,146.89,146.81,0.250555]
[1726862112029,20.0,146.88,146.81,0.250555]
[1726862112420,20.0,146.88,146.82,0.25098]
[1726862112608,20.0,146.88,146.83,16.345]
[1726862112940,47.4929,146.94,146.84,6.28518]
[1726862112941,6.6029,146.94,146.84,6.28518]
[1726862113241,7.08324209,146.92,146.84,7.64709647]
[1726862113654,15.9523,146.96,146.84,7.64709647]
[1726862113655,15.9523,146.96,146.86,0.25098]
[1726862113945,7.08137316,146.96,146.86,1.61247305]
[1726862114119,7.08137316,146.96,146.86,0.25098]
[1726862114631,7.08137316,146.96,146.88,0.25098]
[1726862115038,7.08137316,146.96,146.89,1.3614135]
[1726862115224,20.0,146.95,146.9,0.25098]
[1726862118740,0.250555,146.97,146.92,24.027864]
[1726862118944,0.250555,146.97,146.94,0.25098]
[1726862120224,0.250555,146.97,146.93,0.25098]
[1726862120924,0.250555,146.97,146.92,0.12549]
[1726862121132,0.250555,146.97,146.92,0.25098]
[1726862121727,0.250555,146.97,146.91,21.6694]
[1726862121728,43.776884,146.96,146.85,22.8762]
[1726862122520,50.12431597,146.96,146.85,22.8762]
[1726862123420,50.12431597,146.96,146.86,0.25098]
[1726862124447,43.776884,146.94,146.85,22.8762]
[1726862124764,43.776884,146.94,146.81,0.250555]
[1726862124765,56.22231597,146.94,146.81,22.822655]
[1726862125042,50.583384,146.92,146.81,22.822655]
[1726862125416,56.93081597,146.92,146.81,22.822655]
[1726862125943,26.34743197,146.92,146.82,1.3620352]
[1726862126131,23.571855,146.97,146.81,22.822655]
[1726862126333,6.34743197,146.96,146.82,24.027864]
[1726862126535,6.8055,146.94,146.82,23.902374]
[1726862126721,13.15293197,146.94,146.82,23.902374]
[1726862127234,20.0,146.92,146.82,0.12549]
[1726862127628,20.0,146.9,146.82,0.12549]
[1726862127942,20.0,146.9,146.82,24.027864]
[1726862128346,20.0,146.91,146.82,24.027864]
[1726862128829,20.0,146.91,146.82,0.25098]
[1726862129430,30.86099165,146.9,146.82,0.25098]
[1726862129833,20.0,146.89,146.82,0.25098]
[1726862130453,20.0,146.89,146.82,0.12549]
[1726862130835,20.0,146.89,146.81,6.500055]
[1726862132347,20.0,146.89,146.82,0.25098]
[1726862133755,40.43,146.89,146.82,0.25098]
[1726862133937,20.0,146.89,146.82,0.25098]
[1726862136650,20.0,146.89,146.82,1.61301367]
[1726862136845,20.0,146.89,146.83,23.776884]
[1726862137041,20.0,146.91,146.84,0.25098]
[1726862138151,20.0,146.91,146.84,1.61276154]
[1726862138460,20.0,146.91,146.84,0.25098]
[1726862141749,20.0,146.91,146.81,6.500055]
[1726862142066,20.0,146.89,146.81,6.500055]
[1726862143656,20.0,146.89,146.82,0.25098]
[1726862147554,27.10842434,146.89,146.82,0.25098]
[1726862150167,20.0,146.91,146.82,0.25098]
[1726862150545,27.10474079,146.91,146.82,0.25098]
[1726862153868,27.10474079,146.91,146.84,0.25098]
[1726862154267,6.34743197,146.92,146.84,0.25098]
[1726862154451,23.776884,146.93,146.84,0.25098]
[1726862154859,23.776884,146.93,146.84,1.6127687]
[1726862155577,20.0,146.93,146.86,0.25098]
[1726862159344,20.0,146.93,146.83,15.5302]
[1726862159345,20.0,146.93,146.84,0.25098]
[1726862159548,20.0,146.93,146.84,1.6127619]
[1726862160363,20.0,146.93,146.85,23.776884]
[1726862160648,20.0,146.93,146.86,0.25098]
[1726862162173,20.0,146.93,146.88,0.25098]
[1726862162356,20.0,146.94,146.88,1.61243727]
[1726862162666,20.0,146.94,146.88,0.25098]
[1726862164048,20.0,146.92,146.88,0.25098]
[1726862165280,20.0,146.94,146.88,0.25098]
[1726862166276,20.0,146.92,146.88,0.25098]
[1726862168674,40.43,146.92,146.88,0.25098]
[1726862168876,20.0,146.92,146.88,0.25098]
[1726862174256,20.0,146.94,146.88,0.25098]
[1726862175483,13.43983565,146.95,146.88,0.25098]
[1726862175660,13.43983565,146.95,146.9,0.25098]
[1726862176858,20.0,146.94,146.9,0.25098]
[1726862184989,23.776884,146.93,146.85,15.9024]
[1726862185174,20.0,146.92,146.85,15.9024]
[1726862186391,20.0,146.92,146.9,0.411]
[1726862186573,20.0,146.92,146.86,0.25098]
[1726862188188,23.776884,146.91,146.86,0.25098]
[1726862188491,20.0,146.9,146.84,6.4368]
[1726862189893,20.0,146.9,146.82,0.25098]
[1726862191807,20.0,146.92,146.83,1.3619663]
[1726862192096,7.09075623,146.93,146.84,24.027864]
[1726862192872,21.72533197,146.95,146.84,24.027864]
[1726862193090,7.0892864,146.94,146.84,24.027864]
[1726862193397,43.776884,146.93,146.84,0.25098]
[1726862193896,43.776884,146.93,146.83,24.027864]
[1726862194078,43.776884,146.93,146.83,0.25098]
[1726862194999,64.206884,146.93,146.81,22.483155]
[1726862196389,43.776884,146.93,146.83,0.25098]
[1726862196894,64.206884,146.93,146.83,0.25098]
[1726862197573,43.776884,146.93,146.83,0.25098]
[1726862197786,43.776884,146.93,146.82,24.027864]
[1726862198501,64.206884,146.93,146.82,24.027864]
[1726862198888,20.0,146.91,146.82,24.027864]
[1726862199091,64.206884,146.93,146.82,24.027864]
[1726862200500,111.902784,146.93,146.82,0.25098]
[1726862200703,26.77743197,146.92,146.82,0.25098]
[1726862200894,20.0,146.91,146.82,0.25098]
[1726862202210,20.0,146.89,146.82,0.25098]
[1726862202788,43.776884,146.91,146.82,0.25098]
[1726862203485,20.0,146.89,146.82,0.25098]
[1726862214500,23.776884,146.88,146.81,0.250555]
[1726862214712,20.0,146.84,146.78,16.378]
[1726862215808,20.0,146.86,146.78,16.378]
[1726862216593,20.0,146.86,146.79,0.25098]
[1726862219414,20.0,146.86,146.79,1.61327567]
[1726862220307,16.0026,146.89,146.79,1.61327567]
[1726862220308,17.1872687,146.93,146.8,1.36206267]
[1726862220507,17.1872687,146.93,146.83,24.027864]
[1726862220508,22.35003197,146.93,146.83,24.027864]
[1726862220694,29.44215768,146.93,146.85,0.25098]
[1726862222102,20.250555,146.92,146.85,0.25098]
[1726862224802,20.250555,146.92,146.85,1.61267373]
[1726862225005,0.250555,146.92,146.85,1.61267373]
[1726862225701,0.250555,146.92,146.88,6.6574]
[1726862225904,0.250555,146.92,146.9,0.25098]
[1726862226091,0.250555,146.92,146.9,15.79898]
[1726862228299,0.250555,146.92,146.9,0.25098]
[1726862235636,0.250555,146.92,146.9,24.027864]
[1726862235810,0.250555,146.92,146.91,1.61213674]
[1726862236117,0.250555,146.92,146.91,25.38902074]
[1726862236716,0.250555,146.92,146.91,39.495264]
[1726862240036,0.250555,146.92,146.91,59.495264]
[1726862240916,0.250555,146.97,146.93,24.027864]
[1726862241231,0.250555,146.97,146.95,0.12549]
[1726862241538,0.250555,146.97,146.96,1.61170501]
[1726862241745,0.250555,146.97,146.96,0.25098]
[1726862242040,0.250555,146.97,146.96,1.61168836]
[1726862242242,0.250555,146.97,146.96,0.25098]
[1726862242540,0.250555,146.97,146.96,1.61168717]
[1726862242739,0.250555,146.97,146.96,0.25098]
[1726862242914,0.250555,146.97,146.96,1.61168787]
[1726862243620,0.250555,146.97,146.96,0.25098]
[1726862244713,0.250555,146.97,146.96,41.98564221]
[1726862245428,0.250555,147.01,146.97,55.618864]
[1726862245626,0.250555,147.01,146.99,24.027864]
[1726862245829,0.250555,147.01,147.0,24.027864]
[1726862247040,0.250555,147.01,147.0,0.25098]
[1726862250663,0.250555,147.01,146.97,31.591]
[1726862251455,0.250555,147.01,146.98,1.36057038]
[1726862251963,0.250555,147.01,146.99,0.25098]
[1726862252343,0.250555,147.01,146.98,24.027864]
[1726862252959,0.250555,147.01,146.98,0.25098]
[1726862254150,0.250555,147.01,146.93,16.2394]
[1726862254348,0.250555,147.01,146.94,20.0]
[1726862254954,0.250555,147.01,146.94,21.36082768]
[1726862255467,0.250555,147.01,146.95,24.027864]
[1726862255676,0.250555,147.01,146.97,0.25098]
[1726862255860,0.250555,147.01,146.99,24.027864]
[1726862256173,0.250555,147.01,146.97,24.027864]
[1726862257648,0.250555,147.01,146.94,20.0]
[1726862257852,0.250555,147.01,146.95,1.36048048]
[1726862258850,0.250555,147.01,146.96,24.027864]
[1726862259054,0.250555,147.01,146.96,0.25098]
[1726862259666,0.250555,147.01,146.94,20.0]
[1726862260870,0.250555,147.01,146.95,0.25098]
[1726862264756,0.250555,147.01,146.94,24.027864]
[1726862265056,0.250555,147.01,146.94,25.38868816]
[1726862266076,0.250555,147.01,146.94,24.027864]
[1726862268774,0.250555,147.01,146.94,23.776884]
[1726862268994,15.675,147.0,146.94,1.3608796]
[1726862269981,15.675,147.0,146.92,1.36077581]
[1726862270156,15.675,147.0,146.93,24.027864]
[1726862270467,15.675,147.0,146.92,1.36077581]
[1726862270468,22.0198,147.0,146.95,0.25098]
[1726862273357,20.0,146.99,146.95,0.25098]
[1726862278982,22.0198,147.0,146.95,0.25098]
[1726862280668,22.0198,147.0,146.87,20.0]
[1726862280871,22.0198,147.0,146.91,20.0]
[1726862281276,22.0198,147.0,146.92,1.36112945]
[1726862281477,22.0198,147.0,146.91,20.0]
[1726862282085,21.3397,146.98,146.86,0.250555]
[1726862282390,20.0,146.97,146.86,0.250555]
[1726862283300,20.0,146.97,146.87,0.12549]
[1726862283472,15.0531,146.96,146.86,0.250555]
[1726862283675,6.2866,146.94,146.86,0.250555]
[1726862283894,35.0531,146.93,146.86,0.250555]
[1726862286307,35.0531,146.93,146.87,0.25098]
[1726862290005,35.0531,146.93,146.86,0.250555]
[1726862290995,20.0,146.89,146.86,0.250555]
[1726862291197,20.0,146.89,146.81,0.250555]
[1726862292884,20.0,146.89,146.82,0.25098]
[1726862295986,20.0,146.87,146.82,0.25098]
[1726862296297,20.0,146.85,146.82,0.25098]
[1726862297897,6.3437,146.86,146.82,0.25098]
[1726862303510,6.3437,146.86,146.82,0.12549]
[1726862303811,20.0,146.85,146.82,0.12549]
[1726862305515,20.0,146.85,146.77,3.1379989]
[1726862305516,16.5555,146.84,146.77,0.4124019]
[1726862306805,20.0,146.83,146.77,0.4124019]
[1726862307316,20.0,146.83,146.78,0.25098]
[1726862311400,16.5555,146.84,146.78,25.3904097]
[1726862311799,16.5555,146.84,146.78,24.027864]
[1726862312119,6.3437,146.86,146.81,0.25098]
[1726862312299,15.0196,146.88,146.81,1.61292304]
[1726862312614,15.0196,146.88,146.83,0.25098]
[1726862312820,15.0196,146.88,146.83,1.61278476]
[1726862313220,15.0196,146.88,146.83,0.25098]
[1726862318608,23.016455,146.92,146.83,0.25098]
[1726862319123,23.016455,146.92,146.82,44.027864]
[1726862319319,23.016455,146.92,146.84,24.027864]
[1726862320321,23.016455,146.92,146.84,0.25098]
[1726862320520,23.016455,146.92,146.86,0.25098]
[1726862321715,23.016455,146.92,146.88,0.25098]
[1726862322831,0.250555,146.92,146.88,0.25098]
[1726862330618,0.250555,146.92,146.88,44.027864]
[1726862330820,0.250555,146.92,146.9,24.027864]
[1726862331020,0.250555,146.92,146.91,1.61213951]
[1726862331942,0.250555,146.92,146.91,24.027864]
[1726862333030,0.250555,146.92,146.91,44.027864]
[1726862338022,0.250555,146.92,146.91,60.350364]
[1726862341826,0.250555,146.92,146.91,44.027864]
[1726862342337,0.250555,146.92,146.87,16.1476]
[1726862342546,0.250555,146.92,146.83,6.2997]
[1726862343725,0.250555,146.92,146.84,1.36109624]
[1726862343941,0.250555,146.92,146.85,24.027864]
[1726862344252,0.250555,146.92,146.89,24.027864]
[1726862344430,0.250555,146.92,146.91,24.027864]
[1726862345226,0.250555,146.92,146.91,0.25098]
[1726862345851,22.522,146.91,146.77,16.5600019]
[1726862346053,22.522,146.91,146.8,1.36163462]
[1726862347229,22.522,146.91,146.81,20.0]
[1726862347442,22.522,146.91,146.82,1.36160826]
[1726862347639,22.522,146.91,146.8,16.560002]
[1726862347835,22.522,146.91,146.77,16.5600019]
[1726862348048,22.522,146.91,146.77,33.1200039]
[1726862348726,15.0833,146.9,146.77,0.4124019]
[1726862349256,15.0833,146.9,146.78,1.3620257]
[1726862349742,15.0833,146.9,146.79,2.725018]
[1726862349943,15.0833,146.9,146.81,23.776884]
[1726862350132,15.0833,146.9,146.82,1.61300602]
[1726862350532,15.0833,146.9,146.84,0.25098]
[1726862350834,15.0833,146.9,146.82,0.25098]
[1726862351352,20.0,146.89,146.82,0.25098]
[1726862351552,16.4418,146.87,146.75,20.0]
[1726862352159,16.4418,146.87,146.84,0.411]
[1726862352323,16.4418,146.87,146.78,1.36236425]
[1726862352931,20.0,146.86,146.73,16.0091]
[1726862353134,22.7918,146.85,146.72,1.43568466]
[1726862353342,20.0,146.84,146.72,16.259655]
[1726862353534,20.0,146.84,146.72,0.250555]
[1726862353731,20.0,146.84,146.72,1.61295129]
[1726862353932,22.7918,146.85,146.72,1.61294651]
[1726862354171,20.0,146.84,146.74,8.279327]
[1726862354462,20.0,146.84,146.78,0.25098]
[1726862356271,20.0,146.84,146.72,0.250555]
[1726862356943,6.4378,146.82,146.74,2.726007]
[1726862357138,6.4378,146.82,146.72,0.250555]
[1726862357344,20.0,146.81,146.72,0.250555]
[1726862357542,20.0,146.81,146.72,2.977014]
[1726862357958,20.0,146.81,146.72,4.33977048]
[1726862358343,20.0,146.81,146.72,2.977014]
[1726862358546,20.0,146.81,146.78,0.25098]
[1726862362069,20.0,146.81,146.76,0.12549]
[1726862362752,15.2229,146.8,146.76,0.12549]
[1726862363267,26.235,146.79,146.72,0.250555]
[1726862364874,26.235,146.79,146.73,0.25098]
[1726862365380,6.235,146.79,146.73,0.25098]
[1726862369258,6.235,146.79,146.73,1.61375552]
[1726862369659,6.235,146.79,146.74,23.776884]
[1726862369864,6.235,146.79,146.75,0.25098]
[1726862370069,6.235,146.79,146.75,1.61365371]
[1726862370287,6.235,146.79,146.75,0.25098]
[1726862371460,15.2229,146.8,146.75,0.25098]
[1726862379890,15.2229,146.8,146.72,24.027439]
[1726862380098,15.2229,146.8,146.73,20.0]
[1726862380799,15.2229,146.8,146.72,0.250555]
[1726862380979,15.2229,146.8,146.72,1.61350074]
[1726862382096,15.2229,146.8,146.73,0.25098]
[1726862382487,15.2229,146.8,146.73,20.25098]
[1726862383704,15.2229,146.8,146.75,0.25098]
[1726862384207,15.2229,146.8,146.75,0.12549]
[1726862385012,15.2229,146.8,146.72,0.250555]
[1726862385013,20.0,146.79,146.73,0.12549]
[1726862385511,20.0,146.77,146.73,0.12549]
[1726862386717,20.0,146.77,146.73,0.25098]
[1726862389700,6.515,146.78,146.73,0.25098]
[1726862391697,15.5996,146.77,146.73,0.25098]
[1726862396408,15.5996,146.77,146.72,0.250555]
[1726862396409,20.0,146.76,146.72,0.250555]
[1726862396798,20.0,146.74,146.72,0.250555]
[1726862397320,20.0,146.76,146.72,0.250555]
[1726862397819,20.0,146.76,146.68,0.4124019]
[1726862398024,20.0,146.76,146.69,0.25098]
[1726862398235,20.0,146.76,146.69,24.027864]
[1726862398822,15.5996,146.77,146.71,0.12549]
[1726862399511,15.5996,146.77,146.69,23.902374]
[1726862399512,15.5996,146.77,146.7,0.12549]
[1726862399719,15.5996,146.77,146.71,0.12549]
[1726862400136,15.5996,146.77,146.7,0.25098]
[1726862400516,15.5996,146.77,146.7,20.25098]
[1726862401351,15.5996,146.77,146.71,23.776884]
[1726862401522,15.5996,146.77,146.72,0.25098]
[1726862402341,20.0,146.8,146.72,1.61384935]
[1726862402722,15.3242,146.81,146.74,0.25098]
[1726862402919,15.3242,146.81,146.76,0.25098]
[1726862403126,7.34993962,146.84,146.78,0.25098]
[1726862404220,0.250555,146.84,146.78,0.25098]
[1726862404427,0.250555,146.84,146.78,1.61331437]
[1726862404845,0.250555,146.84,146.7,20.1176]
[1726862404846,0.250555,146.84,146.8,44.027864]
[1726862405141,0.250555,146.84,146.83,20.25098]
[1726862405352,0.250555,146.84,146.83,45.38942479]
[1726862405641,0.250555,146.84,146.83,44.027864]
[1726862406222,0.250555,146.84,146.83,46.751993]
[1726862409633,0.250555,146.84,146.83,46.626503]
[1726862410942,0.250555,146.84,146.83,46.751993]
[1726862412846,0.250555,146.84,146.83,2.724129]
[1726862413024,0.250555,146.84,146.8,20.0]
[1726862413227,0.250555,146.84,146.82,2.724661]
[1726862413641,0.250555,146.84,146.83,1.36188262]
[1726862413843,0.250555,146.84,146.83,1.36188279]
[1726862414027,0.250555,146.84,146.83,1.36174624]
[1726862414427,0.250555,146.84,146.83,25.38961024]
[1726862414847,0.250555,146.84,146.83,44.027864]
[1726862415153,0.250555,146.84,146.83,0.12549]
[1726862415523,0.250555,146.84,146.8,20.0]
[1726862415524,0.250555,146.84,146.82,0.12549]
[1726862415728,0.250555,146.84,146.82,1.36198529]
[1726862416051,0.250555,146.84,146.82,1.36198764]
[1726862416740,0.250555,146.84,146.81,2.724865]
[1726862417057,0.250555,146.84,146.82,25.38960822]
[1726862417256,0.250555,146.84,146.82,24.027864]
[1726862419953,0.250555,146.84,146.83,45.2641961]
[1726862420854,0.250555,146.84,146.83,43.902374]
[1726862421631,0.250555,146.84,146.83,44.027864]
[1726862424037,0.250555,146.84,146.82,0.12549]
[1726862426052,0.250555,146.84,146.83,0.12549]
[1726862428964,0.250555,146.84,146.83,25.38985944]
[1726862429161,0.250555,146.84,146.83,45.38985944]
[1726862430146,0.250555,146.84,146.83,44.027864]
[1726862430464,0.250555,146.84,146.83,44.145464]
[1726862431066,0.250555,146.84,146.83,65.257164]
[1726862431246,0.250555,146.88,146.85,0.12549]
[1726862431441,0.250555,146.88,146.87,44.027864]
[1726862437275,0.250555,146.88,146.87,0.25098]
[1726862438083,0.250555,146.88,146.86,0.25098]
[1726862438277,0.250555,146.88,146.87,1.61234536]
[1726862438573,0.250555,146.88,146.87,45.38922936]
[1726862438758,0.250555,146.88,146.87,21.48685536]
[1726862439083,0.250555,146.88,146.87,20.0]
[1726862439284,0.250555,146.88,146.8,20.0]
[1726862439497,0.250555,146.88,146.79,22.754]
[1726862440173,0.250555,146.88,146.8,24.027864]
[1726862440982,0.250555,146.88,146.85,20.25098]
[1726862441187,0.250555,146.88,146.85,20.0]
[1726862441491,0.250555,146.88,146.86,0.25098]
[1726862444876,0.250555,146.88,146.85,24.027864]
[1726862445187,0.250555,146.88,146.87,0.25098]
[1726862445364,0.250555,146.88,146.87,44.027864]
[1726862446588,0.250555,146.88,146.87,44.310664]
[1726862447791,0.250555,146.88,146.87,45.67168249]
[1726862448268,0.250555,146.88,146.87,44.310664]
[1726862448676,0.250555,146.88,146.87,45.67168764]
[1726862450691,0.250555,146.88,146.87,45.78928764]
[1726862451288,0.250555,146.88,146.87,45.78929087]
[1726862451488,0.250555,146.88,146.87,44.428264]
[1726862452487,0.250555,146.88,146.87,20.4004]
[1726862452866,0.250555,146.88,146.87,0.4004]
[1726862453870,0.250555,146.88,146.87,0.65138]
[1726862454070,0.250555,146.88,146.87,44.428264]
[1726862458181,0.250555,146.92,146.88,60.439064]
[1726862460694,0.250555,146.92,146.9,0.25098]
[1726862460894,0.250555,146.92,146.91,44.027864]
[1726862462292,0.250555,146.92,146.91,45.38852398]
[1726862466519,0.250555,146.92,146.91,44.027864]
[1726862467719,0.250555,146.92,146.91,20.0]
[1726862467907,0.250555,146.92,146.89,20.0]
[1726862468906,0.250555,146.92,146.91,24.027864]
[1726862469100,0.250555,146.92,146.91,44.027864]
[1726862470421,0.250555,146.92,146.91,44.145464]
[1726862473842,0.250555,146.92,146.91,20.1176]
[1726862474048,0.250555,146.92,146.91,0.1176]
[1726862474418,0.250555,146.92,146.91,20.1176]
[1726862475322,0.250555,146.92,146.91,44.145464]
[1726862476927,0.250555,146.92,146.91,0.36858]
[1726862477126,0.250555,146.92,146.91,44.145464]
[1726862477327,0.250555,146.92,146.91,45.50658581]
[1726862477550,0.250555,146.92,146.91,44.145464]
[1726862486159,0.250555,146.92,146.91,45.50615852]
[1726862487041,0.250555,146.92,146.91,44.145464]
[1726862490544,0.250555,146.92,146.91,44.428264]
[1726862491536,0.250555,146.92,146.91,0.4004]
[1726862492939,0.250555,146.92,146.91,45.78892194]
[1726862493258,0.250555,146.92,146.91,54.40331504]
[1726862496346,0.250555,146.97,146.92,23.902374]
[1726862496552,0.250555,146.97,146.94,0.25098]
[1726862496856,0.250555,146.97,146.93,21.36032656]
[1726862496857,0.250555,146.97,146.96,0.25098]
[1726862498432,0.250555,146.97,146.96,44.027864]
[1726862502051,0.250555,146.97,146.96,43.902374]
[1726862502457,0.250555,146.97,146.91,20.0]
[1726862502961,0.250555,146.97,146.89,20.0]
[1726862504043,0.250555,146.97,146.89,28.6143931]
[1726862504246,0.250555,146.97,146.92,24.027864]
[1726862504445,0.250555,146.97,146.95,20.0]
[1726862504642,0.250555,146.97,146.96,1.48596329]
[1726862504942,0.250555,146.97,146.96,45.38833729]
[1726862505544,0.250555,146.97,146.96,44.027864]
[1726862509164,0.250555,146.97,146.96,45.38813023]
[1726862509955,0.250555,146.97,146.96,45.67093023]
[1726862511650,0.250555,146.97,146.96,45.78853023]
[1726862512671,0.250555,146.97,146.96,44.428264]
[1726862513053,0.250555,146.97,146.96,45.78851479]
[1726862513476,0.250555,146.97,146.96,54.40290789]
[1726862513962,0.250555,146.97,146.96,53.0426571]
[1726862514167,0.250555,146.97,146.96,44.428264]
[1726862516957,0.250555,146.97,146.96,47.149225]
[1726862526587,0.1618469,146.99,146.96,55.7636181]
[1726862526792,0.1618469,146.99,146.97,54.0021515]
[1726862528484,0.1618469,146.99,146.97,52.6422571]
[1726862529885,0.1618469,146.99,146.97,52.9250571]
[1726862530285,0.1618469,146.99,146.97,28.8971931]